fUSD/lending_fUSD_20241125
["ID","MTS","AMOUNT","RATE_DAILY","PERIOD"]
[343277718,1732537871863,-1306.23,0.00041095,21]
[343277719,1732537871873,-500.0,0.00041095,21]
[343277720,1732537871882,-537.86,0.00041095,21]
[343277721,1732537871893,-656.03,0.00041095,2]
[343277722,1732537871902,-277.30402287,0.00041095,21]
[343277723,1732537871911,-1618.74,0.00041095,21]
[343277724,1732537871919,-2572.0,0.00041095,21]
[343277725,1732537871928,-500.0,0.00041095,21]
[343277726,1732537871938,-541.63616831,0.00041095,21]
[343277727,1732537871947,-543.6,0.00041095,60]
[343277728,1732537871956,-543.6,0.00041095,60]
[343277729,1732537871965,-543.6,0.00041095,60]
[343277730,1732537871974,-543.6,0.00041095,60]
[343277731,1732537871983,-543.6,0.00041095,60]
[343277732,1732537871991,-543.6,0.00041095,60]
[343277733,1732537872000,-543.6,0.00041095,60]
[343277734,1732537872009,-543.6,0.00041095,60]
[343277735,1732537872019,-543.6,0.00041095,60]
[343277736,1732537872028,-211.33941249,0.00041095,21]
[343277737,1732537872038,-736.98,0.00041095,120]
[343277738,1732537872047,-500.0,0.00041095,21]
[343277739,1732537872056,-500.0,0.00041095,21]
[343277740,1732537872065,-1233.05,0.00041095,21]
[343277741,1732537872074,-733.19,0.00041095,21]
[343277742,1732537872083,-754.08,0.00041095,21]
[343277743,1732537872092,-500.0,0.00041095,21]
[343277744,1732537872102,-500.0,0.00041095,21]
[343277745,1732537872112,-500.0,0.00041095,21]
[343277746,1732537872121,-500.0,0.00041095,21]
[343277747,1732537872130,-501.95,0.00041095,21]
[343277748,1732537872141,-604.81,0.00041095,21]
[343277749,1732537872150,-500.0,0.00041095,21]
[343277750,1732537872160,-1609.96,0.00041095,21]
[343277751,1732537872170,-500.0,0.00041095,21]
[343277752,1732537872179,-8040.67,0.00041095,21]
[343277753,1732537872189,-695.51,0.00041095,21]
[343277754,1732537872198,-728.04,0.00041095,21]
[343277755,1732537872207,-486.55963007,0.00041095,21]
[343277756,1732537872217,-657.65,0.00041095,21]
[343277757,1732537872226,-615.73,0.00041095,21]
[343277758,1732537872236,-6432.17,0.00041095,21]
[343277759,1732537872245,-500.0,0.00041095,21]
[343277760,1732537872255,-500.0,0.00041095,21]
[343277761,1732537872265,-1366.38,0.00041095,21]
[343277762,1732537872275,-978.71,0.00041095,21]
[343277763,1732537872284,-500.0,0.00041095,21]
[343277764,1732537872294,-500.0,0.00041095,21]
[343277765,1732537872304,-181.43406098,0.00041096,2]
[343277766,1732537872313,-177.13,0.00041096,2]
[343277767,1732537872323,-150.71,0.00041096,2]
[343277768,1732537872332,-200.15400762,0.00041136,21]
[343277769,1732537872342,-500.0,0.00041137,21]
[343277770,1732537872352,-500.0,0.00041137,21]
[343277771,1732537872362,-456.92,0.00041137,21]
[343277772,1732537872371,-500.0,0.00041137,21]
[343277773,1732537872381,-290.92,0.00041137,21]
[343277774,1732537872393,-543.6,0.00041137,60]
[343277775,1732537872402,-500.0,0.00041137,21]
[343277776,1732537872413,-631.79238153,0.00041137,21]
[343277777,1732537872428,-500.0,0.00041137,21]
[343277778,1732537872537,-500.0,0.00041137,21]
[343277779,1732537872547,-551.80539702,0.00041137,21]
[343277780,1732537872557,-500.0,0.00041137,21]
[343277781,1732537872567,-336.78839247,0.00041137,21]
[343277782,1732537872577,-202.78525,0.00041273,2]
[343277783,1732537872586,-290.774,0.00041279,2]
[343277784,1732537872599,-500.0,0.00041368,21]
[343277785,1732537872609,-500.0,0.00041369,21]
[343277786,1732537872619,-500.0,0.00041369,21]
[343277787,1732537872629,-500.0,0.00041369,21]
[343277788,1732537872647,-1306.23,0.00041369,21]
[343277789,1732537872658,-500.0,0.00041369,21]
[343277790,1732537872668,-537.86,0.00041369,21]
[343277791,1732537872679,-656.03,0.00041369,2]
[343277792,1732537872689,-1618.74,0.00041369,21]
[343277793,1732537872699,-2572.0,0.00041369,21]
[343277794,1732537872710,-500.0,0.00041369,21]
[343277795,1732537872720,-500.0,0.00041369,21]
[343277796,1732537872730,-500.0,0.00041369,21]
[343277797,1732537872739,-1233.05,0.00041369,21]
[343277798,1732537872749,-733.19,0.00041369,21]
[343277799,1732537872759,-754.08,0.00041369,21]
[343277800,1732537872771,-182.89850067,0.00041369,21]
[343277801,1732537872782,-500.0,0.00041369,21]
[343277802,1732537872793,-500.0,0.00041369,21]
[343277803,1732537872803,-500.0,0.00041369,21]
[343277804,1732537872812,-501.95,0.00041369,21]
[343277805,1732537872822,-604.81,0.00041369,21]
[343277806,1732537872832,-500.0,0.00041369,21]
[343277807,1732537872842,-1609.96,0.00041369,21]
[343277808,1732537872852,-500.0,0.00041369,21]
[343277809,1732537872862,-8040.67,0.00041369,21]
[343277810,1732537872872,-695.51,0.00041369,21]
[343277811,1732537872882,-728.04,0.00041369,21]
[343277812,1732537872892,-657.65,0.00041369,21]
[343277813,1732537872902,-615.73,0.00041369,21]
[343277814,1732537872912,-6432.17,0.00041369,21]
[343277815,1732537872922,-500.0,0.00041369,21]
[343277816,1732537872931,-500.0,0.00041369,21]
[343277817,1732537872941,-1366.38,0.00041369,21]
[343277818,1732537872951,-978.71,0.00041369,21]
[343277819,1732537872961,-500.0,0.00041369,21]
[343277820,1732537872971,-456.64,0.00041369,21]
[343277821,1732537872981,-629.38,0.00041411,21]
[343277822,1732537872991,-500.0,0.00041411,21]
[343277823,1732537873001,-500.0,0.00041411,21]
[343277824,1732537873011,-543.6,0.00041411,60]
[343277825,1732537873022,-500.0,0.00041411,21]
[343277826,1732537873032,-175.58950404,0.00041411,21]
[343277827,1732537873043,-500.0,0.00041411,21]
[343277828,1732537873053,-500.0,0.00041411,21]
[343277829,1732537873063,-1000.0,0.00041456,2]
[343277830,1732537873072,-1141.9,0.0004148,2]
[343277831,1732537873082,-1600.0,0.0004148,2]
[343277832,1732537873092,-736.98,0.00041506,120]
[343277833,1732537873102,-1957.31972007,0.00041585,2]
[343277834,1732537873112,-4776.60757764,0.00041635,15]
[343277835,1732537873122,-500.0,0.00041643,21]
[343277836,1732537873133,-500.0,0.00041643,21]
[343277837,1732537873144,-500.0,0.00041643,21]
[343277838,1732537873155,-1306.23,0.00041643,21]
[343277839,1732537873165,-500.0,0.00041643,21]
[343277840,1732537873174,-537.86,0.00041643,21]
[343277841,1732537873183,-656.03,0.00041643,2]
[343277842,1732537873193,-1618.74,0.00041643,21]
[343277843,1732537873203,-2572.0,0.00041643,21]
[343277844,1732537873214,-365.52586961,0.00041643,21]
[343277845,1732537873224,-500.0,0.00041643,21]
[343277846,1732537873234,-500.0,0.00041643,21]
[343277847,1732537873244,-1233.05,0.00041643,21]
[343277848,1732537873254,-733.19,0.00041643,21]
[343277849,1732537873264,-754.08,0.00041643,21]
[343277850,1732537873275,-398.68104146,0.00041643,21]
[343277851,1732537873285,-500.0,0.00041643,21]
[343277852,1732537873294,-500.0,0.00041643,21]
[343277853,1732537873304,-501.95,0.00041643,21]
[343277854,1732537873314,-604.81,0.00041643,21]
[343277855,1732537873324,-500.0,0.00041643,21]
[343277856,1732537873334,-1609.96,0.00041643,21]
[343277857,1732537873344,-500.0,0.00041643,21]
[343277858,1732537873354,-8040.67,0.00041643,21]
[343277859,1732537873365,-695.51,0.00041643,21]
[343277860,1732537873374,-728.04,0.00041643,21]
[343277861,1732537873384,-657.65,0.00041643,21]
[343277862,1732537873396,-615.73,0.00041643,21]
[343277863,1732537873405,-6432.17,0.00041643,21]
[343277864,1732537873416,-363.41,0.00041643,21]
[343277865,1732537873428,-500.0,0.00041643,21]
[343277866,1732537873439,-1366.38,0.00041643,21]
[343277867,1732537873449,-978.71,0.00041643,21]
[343277868,1732537873459,-500.0,0.00041643,21]
[343277869,1732537873469,-500.0,0.00041685,21]
[343277870,1732537873479,-500.0,0.00041685,21]
[343277871,1732537873489,-543.6,0.00041685,60]
[343277872,1732537873499,-500.0,0.00041685,21]
[343277873,1732537873511,-500.0,0.00041685,21]
[343277874,1732537873521,-275.9960451,0.00041685,21]
[343277875,1732537873530,-1001.93,0.00041826,2]
[343277876,1732537873540,-500.0,0.00041916,21]
[343277877,1732537873551,-500.0,0.00041917,21]
[343277878,1732537873562,-639.16,0.00041917,21]
[343277879,1732537873572,-284.47,0.00041917,21]
[343277880,1732537873582,-1306.23,0.00041917,21]
[343277881,1732537873592,-183.9,0.00041917,21]
[343277882,1732537873602,-537.86,0.00041917,21]
[343277883,1732537873612,-656.03,0.00041917,2]
[343277884,1732537873622,-1618.74,0.00041917,21]
[343277885,1732537873632,-2572.0,0.00041917,21]
[343277886,1732537873643,-736.98,0.00041917,120]
[343277887,1732537873653,-426.40562232,0.00041917,21]
[343277888,1732537873663,-500.0,0.00041917,21]
[343277889,1732537873672,-1233.05,0.00041917,21]
[343277890,1732537873682,-733.19,0.00041917,21]
[343277891,1732537873693,-754.08,0.00041917,21]
[343277892,1732537873703,-355.82528689,0.00041917,21]
[343277893,1732537873712,-500.0,0.00041917,21]
[343277894,1732537873723,-501.95,0.00041917,21]
[343277895,1732537873733,-604.81,0.00041917,21]
[343277896,1732537873743,-500.0,0.00041917,21]
[343277897,1732537873753,-1609.96,0.00041917,21]
[343277898,1732537873762,-500.0,0.00041917,21]
[343277899,1732537873772,-8040.67,0.00041917,21]
[343277900,1732537873782,-695.51,0.00041917,21]
[343277901,1732537873792,-728.04,0.00041917,21]
[343277902,1732537873802,-657.65,0.00041917,21]
[343277903,1732537873812,-615.73,0.00041917,21]
[343277904,1732537873822,-6432.17,0.00041917,21]
[343277905,1732537873831,-500.0,0.00041917,21]
[343277906,1732537873841,-1366.38,0.00041917,21]
[343277907,1732537873851,-978.71,0.00041917,21]
[343277908,1732537873861,-500.0,0.00041917,21]
[343277909,1732537873872,-500.0,0.00041959,21]
[343277910,1732537873882,-525.38,0.00041959,21]
[343277911,1732537873895,-543.6,0.00041959,60]
[343277912,1732537873905,-500.0,0.00041959,21]
[343277913,1732537873915,-500.0,0.00041959,21]
[343277914,1732537873925,-656.21588086,0.00041996,15]
[343277915,1732537873934,-250.0,0.00042,120]
[343277916,1732537873946,-1240.6,0.00042,30]
[343277917,1732537873956,-151.0,0.00042,120]
[343277918,1732537873966,-326166.14272494,0.00042,30]
[343277919,1732537873976,-500.0,0.0004219,21]
[343277920,1732537873987,-501.86245426,0.00042191,21]
[343277921,1732537873997,-1306.23,0.00042191,21]
[343277922,1732537874006,-537.86,0.00042191,21]
[343277923,1732537874016,-656.03,0.00042191,2]
[343277924,1732537874026,-1618.74,0.00042191,21]
[343277925,1732537874035,-2572.0,0.00042191,21]
[343277926,1732537874044,-500.0,0.00042191,21]
[343277927,1732537874054,-1233.05,0.00042191,21]
[343277928,1732537874063,-733.19,0.00042191,21]
[343277929,1732537874073,-754.08,0.00042191,21]
[343277930,1732537874083,-500.0,0.00042191,21]
[343277931,1732537874093,-501.95,0.00042191,21]
[343277932,1732537874103,-604.81,0.00042191,21]
[343277933,1732537874113,-500.0,0.00042191,21]
[343277934,1732537874123,-1609.96,0.00042191,21]
[343277935,1732537874132,-500.0,0.00042191,21]
[343277936,1732537874144,-8040.67,0.00042191,21]
[343277937,1732537874154,-695.51,0.00042191,21]
[343277938,1732537874165,-728.04,0.00042191,21]
[343277939,1732537874174,-657.65,0.00042191,21]
[343277940,1732537874184,-615.73,0.00042191,21]
[343277941,1732537874193,-6432.17,0.00042191,21]
[343277942,1732537874203,-500.0,0.00042191,21]
[343277943,1732537874213,-1366.38,0.00042191,21]
[343277944,1732537874222,-978.71,0.00042191,21]
[343277945,1732537874232,-500.0,0.00042191,21]
[343277946,1732537874241,-488.6054,0.00042233,21]
[343277947,1732537874251,-543.6,0.00042233,60]
[343277948,1732537874261,-500.0,0.00042233,21]
[343277949,1732537874271,-500.0,0.00042233,21]
[343277950,1732537874281,-736.98,0.00042328,120]
[343277951,1732537874292,-500.0,0.00042366,2]
[343277952,1732537874302,-168.017315,0.00042367,30]
[343277953,1732537874312,-168.017315,0.00042367,30]
[343277954,1732537874321,-1306.23,0.00042465,21]
[343277955,1732537874331,-537.86,0.00042465,21]
[343277956,1732537874340,-656.03,0.00042465,2]
[343277957,1732537874350,-1618.74,0.00042465,21]
[343277958,1732537874360,-2572.0,0.00042465,21]
[343277959,1732537874370,-500.0,0.00042465,21]
[343277960,1732537874380,-1233.05,0.00042465,21]
[343277961,1732537874391,-733.19,0.00042465,21]
[343277962,1732537874401,-754.08,0.00042465,21]
[343277963,1732537874410,-500.0,0.00042465,21]
[343277964,1732537874421,-501.95,0.00042465,21]
[343277965,1732537874436,-604.81,0.00042465,21]
[343277966,1732537874446,-500.0,0.00042465,21]
[343277967,1732537874456,-1609.96,0.00042465,21]
[343277968,1732537874467,-500.0,0.00042465,21]
[343277969,1732537874477,-8040.67,0.00042465,21]
[343277970,1732537874487,-695.51,0.00042465,21]
[343277971,1732537874496,-728.04,0.00042465,21]
[343277972,1732537874507,-657.65,0.00042465,21]
[343277973,1732537874517,-615.73,0.00042465,21]
[343277974,1732537874527,-6432.17,0.00042465,21]
[343277975,1732537874537,-500.0,0.00042465,21]
[343277976,1732537874547,-1366.38,0.00042465,21]
[343277977,1732537874557,-978.71,0.00042465,21]
[343277978,1732537874567,-500.0,0.00042465,21]
[343277979,1732537874576,-323854.20563049,0.0004249,10]
[343277980,1732537874587,-543.6,0.00042507,60]
[343277981,1732537874597,-637.24840993,0.00042507,21]
[343277982,1732537874607,-500.0,0.00042507,21]
[343277983,1732537874618,-450.23931057,0.00042738,21]
[343277984,1732537874628,-1306.23,0.00042739,21]
[343277985,1732537874639,-537.86,0.00042739,21]
[343277986,1732537874649,-656.03,0.00042739,2]
[343277987,1732537874658,-1618.74,0.00042739,21]
[343277988,1732537874668,-2572.0,0.00042739,21]
[343277989,1732537874678,-736.98,0.00042739,120]
[343277990,1732537874687,-500.0,0.00042739,21]
[343277991,1732537874696,-1233.05,0.00042739,21]
[343277992,1732537874706,-733.19,0.00042739,21]
[343277993,1732537874716,-754.08,0.00042739,21]
[343277994,1732537874725,-500.0,0.00042739,21]
[343277995,1732537874735,-501.95,0.00042739,21]
[343277996,1732537874744,-604.81,0.00042739,21]
[343277997,1732537874754,-500.0,0.00042739,21]
[343277998,1732537874764,-1609.96,0.00042739,21]
[343277999,1732537875045,-500.0,0.00042739,21]
[343278000,1732537875062,-8040.67,0.00042739,21]
[343278001,1732537875072,-695.51,0.00042739,21]
[343278002,1732537875082,-728.04,0.00042739,21]
[343278003,1732537875092,-657.65,0.00042739,21]
[343278004,1732537875102,-615.73,0.00042739,21]
[343278005,1732537875111,-6432.17,0.00042739,21]
[343278006,1732537875121,-528.55514197,0.00042739,21]
[343278007,1732537875131,-1366.38,0.00042739,21]
[343278008,1732537875141,-978.71,0.00042739,21]
[343278009,1732537875150,-500.0,0.00042739,21]
[343278010,1732537875160,-543.6,0.00042781,60]
[343278011,1732537875170,-500.0,0.00042781,21]
[343278012,1732537875180,-873.22,0.00042785,120]
[343278013,1732537875190,-152.29,0.00042918,120]
[343278014,1732537875200,-1141.9,0.0004296,2]
[343278015,1732537875210,-1600.0,0.0004296,2]
[343278016,1732537875220,-174.22,0.00042964,2]
[343278017,1732537875230,-550.0,0.00043,2]
[343278018,1732537875240,-214.0,0.00043,7]
[343278019,1732537875250,-40134.05949917,0.00043,120]
[343278020,1732537875259,-168809.44946555,0.00043,120]
[343278021,1732537875269,-1306.23,0.00043013,21]
[343278022,1732537875278,-537.86,0.00043013,21]
[343278023,1732537875288,-656.03,0.00043013,2]
[343278024,1732537875298,-1618.74,0.00043013,21]
[343278025,1732537875307,-2572.0,0.00043013,21]
[343278026,1732537875317,-500.0,0.00043013,21]
[343278027,1732537875326,-1233.05,0.00043013,21]
[343278028,1732537875335,-733.19,0.00043013,21]
[343278029,1732537875345,-754.08,0.00043013,21]
[343278030,1732537875355,-574.19889391,0.00043013,21]
[343278031,1732537875365,-501.95,0.00043013,21]
[343278032,1732537875375,-604.81,0.00043013,21]
[343278033,1732537875385,-183.94767333,0.00043013,21]
[343278034,1732537875397,-1609.96,0.00043013,21]
[343278035,1732537875407,-358.93899231,0.00043013,21]
[343278036,1732537875418,-8040.67,0.00043013,21]
[343278037,1732537875431,-695.51,0.00043013,21]
[343278038,1732537875440,-728.04,0.00043013,21]
[343278039,1732537875450,-657.65,0.00043013,21]
[343278040,1732537875459,-615.73,0.00043013,21]
[343278041,1732537875470,-6432.17,0.00043013,21]
[343278042,1732537875480,-1366.38,0.00043013,21]
[343278043,1732537875489,-978.71,0.00043013,21]
[343278044,1732537875501,-500.0,0.00043013,21]
[343278045,1732537875510,-543.6,0.00043055,60]
[343278046,1732537875520,-500.0,0.00043055,21]
[343278047,1732537875530,-500.0,0.00043069,120]
[343278048,1732537875540,-446.463,0.0004312,30]
[343278049,1732537875549,-736.98,0.0004315,120]
[343278050,1732537875559,-656.21588086,0.00043262,15]
[343278051,1732537875569,-1306.23,0.00043287,21]
[343278052,1732537875579,-537.86,0.00043287,21]
[343278053,1732537875589,-656.03,0.00043287,2]
[343278054,1732537875599,-1618.74,0.00043287,21]
[343278055,1732537875608,-2572.0,0.00043287,21]
[343278056,1732537875617,-364.12016631,0.00043287,21]
[343278057,1732537875627,-1233.05,0.00043287,21]
[343278058,1732537875636,-733.19,0.00043287,21]
[343278059,1732537875647,-754.08,0.00043287,21]
[343278060,1732537875657,-501.95,0.00043287,21]
[343278061,1732537875666,-604.81,0.00043287,21]
[343278062,1732537875676,-1609.96,0.00043287,21]
[343278063,1732537875685,-8040.67,0.00043287,21]
[343278064,1732537875695,-695.51,0.00043287,21]
[343278065,1732537875704,-728.04,0.00043287,21]
[343278066,1732537875714,-657.65,0.00043287,21]
[343278067,1732537875724,-615.73,0.00043287,21]
[343278068,1732537875733,-6432.17,0.00043287,21]
[343278069,1732537875743,-1366.38,0.00043287,21]
[343278070,1732537875752,-978.71,0.00043287,21]
[343278071,1732537875761,-500.0,0.00043287,21]
[343278072,1732537875770,-151.0,0.00043315,120]
[343278073,1732537875780,-543.6,0.00043329,60]
[343278074,1732537875790,-465.77344991,0.00043329,21]
[343278075,1732537875799,-150.0,0.00043388,2]
[343278076,1732537875808,-13677.0,0.00043388,2]
[343278077,1732537875818,-1163.0,0.00043388,2]
[343278078,1732537875828,-561.0,0.00043422,2]
[343278079,1732537875838,-1930.0,0.00043422,2]
[343278080,1732537875847,-1262.0,0.00043422,2]
[343278081,1732537875857,-3753.0,0.00043422,2]
[343278082,1732537875867,-651.322,0.00043422,2]
[343278083,1732537875877,-3519.0,0.00043422,2]
[343278084,1732537875887,-980.0,0.00043422,2]
[343278085,1732537875898,-5949.0,0.00043422,2]
[343278086,1732537875908,-565.0,0.00043422,2]
[343278087,1732537875917,-1389.069,0.00043422,2]
[343278088,1732537875926,-151.0,0.00043422,2]
[343278089,1732537875938,-2204.8,0.00043513,2]
[343278090,1732537875947,-1306.23,0.00043561,21]
[343278091,1732537875956,-537.86,0.00043561,21]
[343278092,1732537875966,-656.03,0.00043561,2]
[343278093,1732537875975,-1618.74,0.00043561,21]
[343278094,1732537875985,-2572.0,0.00043561,21]
[343278095,1732537875995,-736.98,0.00043561,120]
[343278096,1732537876005,-1233.05,0.00043561,21]
[343278097,1732537876014,-733.19,0.00043561,21]
[343278098,1732537876024,-754.08,0.00043561,21]
[343278099,1732537876033,-501.95,0.00043561,21]
[343278100,1732537876043,-604.81,0.00043561,21]
[343278101,1732537876053,-1609.96,0.00043561,21]
[343278102,1732537876063,-8040.67,0.00043561,21]
[343278103,1732537876073,-695.51,0.00043561,21]
[343278104,1732537876082,-728.04,0.00043561,21]
[343278105,1732537876091,-657.65,0.00043561,21]
[343278106,1732537876101,-615.73,0.00043561,21]
[343278107,1732537876111,-6432.17,0.00043561,21]
[343278108,1732537876120,-1366.38,0.00043561,21]
[343278109,1732537876130,-978.71,0.00043561,21]
[343278110,1732537876141,-500.0,0.00043561,21]
[343278111,1732537876150,-656.5279067,0.00043562,120]
[343278112,1732537876160,-2000.0,0.00043569,120]
[343278113,1732537876170,-543.6,0.00043603,60]
[343278114,1732537876180,-164.76950549,0.00043687,18]
[343278115,1732537876190,-195.11,0.00043754,2]
[343278116,1732537876201,-1306.23,0.00043835,21]
[343278117,1732537876210,-537.86,0.00043835,21]
[343278118,1732537876220,-656.03,0.00043835,2]
[343278119,1732537876229,-1618.74,0.00043835,21]
[343278120,1732537876239,-2572.0,0.00043835,21]
[343278121,1732537876249,-1233.05,0.00043835,21]
[343278122,1732537876259,-733.19,0.00043835,21]
[343278123,1732537876269,-754.08,0.00043835,21]
[343278124,1732537876279,-501.95,0.00043835,21]
[343278125,1732537876288,-604.81,0.00043835,21]
[343278126,1732537876299,-1609.96,0.00043835,21]
[343278127,1732537876308,-8040.67,0.00043835,21]
[343278128,1732537876318,-695.51,0.00043835,21]
[343278129,1732537876328,-728.04,0.00043835,21]
[343278130,1732537876338,-657.65,0.00043835,21]
[343278131,1732537876348,-615.73,0.00043835,21]
[343278132,1732537876357,-6432.17,0.00043835,21]
[343278133,1732537876367,-1366.38,0.00043835,21]
[343278134,1732537876377,-978.71,0.00043835,21]
[343278135,1732537876386,-500.0,0.00043835,21]
[343278136,1732537876397,-2000.0,0.00043836,15]
[343278137,1732537876406,-543.6,0.00043877,60]
[343278138,1732537876417,-6447.77842453,0.000439,2]
[343278139,1732537876429,-736.98,0.00043972,120]
[343278140,1732537876438,-156.07,0.00043973,2]
[343278141,1732537876448,-450.0,0.00044,120]
[343278142,1732537876458,-250.00564627,0.00044,2]
[343278143,1732537876468,-20000.0,0.00044,120]
[343278144,1732537876479,-1001.93,0.00044089,2]
[343278145,1732537876488,-1306.23,0.00044109,21]
[343278146,1732537876499,-537.86,0.00044109,21]
[343278147,1732537876510,-656.03,0.00044109,2]
[343278148,1732537876520,-1618.74,0.00044109,21]
[343278149,1732537876530,-2572.0,0.00044109,21]
[343278150,1732537876539,-1233.05,0.00044109,21]
[343278151,1732537876549,-733.19,0.00044109,21]
[343278152,1732537876559,-754.08,0.00044109,21]
[343278153,1732537876569,-501.95,0.00044109,21]
[343278154,1732537876578,-604.81,0.00044109,21]
[343278155,1732537876588,-1609.96,0.00044109,21]
[343278156,1732537876598,-8040.67,0.00044109,21]
[343278157,1732537876607,-695.51,0.00044109,21]
[343278158,1732537876616,-728.04,0.00044109,21]
[343278159,1732537876626,-657.65,0.00044109,21]
[343278160,1732537876636,-615.73,0.00044109,21]
[343278161,1732537876648,-6432.17,0.00044109,21]
[343278162,1732537876657,-1366.38,0.00044109,21]
[343278163,1732537876666,-978.71,0.00044109,21]
[343278164,1732537876676,-351.09080425,0.00044109,21]
[343278165,1732537876685,-543.6,0.00044151,60]
[343278166,1732537876695,-152.41415329,0.00044273,6]
[343278167,1732537876705,-1306.23,0.00044383,21]
[343278168,1732537876714,-537.86,0.00044383,21]
[343278169,1732537876724,-656.03,0.00044383,2]
[343278170,1732537876734,-1618.74,0.00044383,21]
[343278171,1732537876743,-2572.0,0.00044383,21]
[343278172,1732537876753,-736.98,0.00044383,120]
[343278173,1732537876763,-1233.05,0.00044383,21]
[343278174,1732537876772,-733.19,0.00044383,21]
[343278175,1732537876781,-754.08,0.00044383,21]
[343278176,1732537876791,-501.95,0.00044383,21]
[343278177,1732537876800,-604.81,0.00044383,21]
[343278178,1732537876810,-1609.96,0.00044383,21]
[343278179,1732537876819,-8040.67,0.00044383,21]
[343278180,1732537876829,-695.51,0.00044383,21]
[343278181,1732537876838,-728.04,0.00044383,21]
[343278182,1732537876847,-657.65,0.00044383,21]
[343278183,1732537876857,-615.73,0.00044383,21]
[343278184,1732537876867,-6432.17,0.00044383,21]
[343278185,1732537876877,-1366.38,0.00044383,21]
[343278186,1732537876886,-978.71,0.00044383,21]
[343278187,1732537876898,-627.48,0.000444,2]
[343278188,1732537876907,-543.6,0.00044425,60]
[343278189,1732537876917,-1141.9,0.0004444,2]
[343278190,1732537876928,-1600.0,0.0004444,2]
[343278191,1732537876938,-1007.0,0.00044444,120]
[343278192,1732537876948,-656.21588086,0.00044528,15]
[343278193,1732537876958,-168.85060596,0.0004463,60]
[343278194,1732537876967,-1306.3546,0.00044657,21]
[343278195,1732537876977,-538.03170212,0.00044657,21]
[343278196,1732537876986,-656.1535375,0.00044657,2]
[343278197,1732537876996,-1618.90939853,0.00044657,21]
[343278198,1732537877006,-2572.08772405,0.00044657,21]
[343278199,1732537877015,-1233.09235093,0.00044657,21]
[343278200,1732537877025,-733.37803009,0.00044657,21]
[343278201,1732537877035,-754.25697762,0.00044657,21]
[343278202,1732537877045,-502.14915379,0.00044657,21]
[343278203,1732537877054,-604.86727704,0.00044657,21]
[343278204,1732537877065,-1610.04514183,0.00044657,21]
[343278205,1732537877075,-8040.89223765,0.00044657,21]
[343278206,1732537877085,-695.57237454,0.00044657,21]
[343278207,1732537877095,-728.09782644,0.00044657,21]
[343278208,1732537877104,-657.79253011,0.00044657,21]
[343278209,1732537877114,-615.85089678,0.00044657,21]
[343278210,1732537877124,-6432.31477498,0.00044657,21]
[343278211,1732537877133,-1366.40126452,0.00044657,21]
[343278212,1732537877147,-978.9352936,0.00044657,21]
[343278213,1732537877157,-543.6,0.00044699,60]
[343278214,1732537877166,-736.98,0.00044794,120]
[343278215,1732537877176,-543.78546872,0.00044973,60]
[343278216,1732537877186,-20000.0,0.00045,4]
[343278217,1732537877200,-209858.97847097,0.00045,120]